bitfinex/quotes_SOLUSD_20250622
["timestamp","ask_amount","ask_price","bid_price","bid_amount"]
[1750618383972,38.42263262,130.2,130.16,0.74]
[1750618384283,38.42263262,130.2,130.16,31.81228148]
[1750618384467,26.0,130.18,130.16,31.81228148]
[1750618384670,26.0,130.18,130.16,39.49509392]
[1750618384981,6.9,130.23,130.16,39.49509392]
[1750618384982,26.0,130.2,130.17,31.81228148]
[1750618385179,12.42263262,130.22,130.18,0.74]
[1750618385385,6.9,130.23,130.17,31.07228148]
[1750618385386,38.42263262,130.21,130.17,31.81228148]
[1750618385881,38.42263262,130.21,130.17,19.38964886]
[1750618386413,12.42263262,130.21,130.17,31.81228148]
[1750618386589,26.0,130.2,130.17,31.81228148]
[1750618387287,26.0,130.2,130.17,38.75427618]
[1750618387483,26.0,130.2,130.18,0.61]
[1750618388079,26.0,130.22,130.2,0.61]
[1750618388389,14.37556086,130.24,130.2,13.03263262]
[1750618388599,40.37556086,130.24,130.21,0.61]
[1750618388918,12.42263262,130.25,130.2,13.03263262]
[1750618389082,26.0,130.24,130.2,20.10284956]
[1750618389286,6.9,130.29,130.23,13.03263262]
[1750618389481,12.42263262,130.29,130.25,12.42263262]
[1750618389675,8.1185,130.32,130.25,13.03263262]
[1750618389989,20.54113262,130.32,130.27,12.42263262]
[1750618390210,12.42263262,130.32,130.27,13.03263262]
[1750618390384,38.42263262,130.29,130.25,1.6043]
[1750618390577,26.0,130.25,130.21,1.6043]
[1750618390897,12.42263262,130.22,130.17,2.2143]
[1750618391074,12.42263262,130.2,130.17,9.89641754]
[1750618391475,12.42263262,130.2,130.17,2.2143]
[1750618391880,12.42263262,130.2,130.17,1.6043]
[1750618392090,12.42263262,130.2,130.16,18.64964886]
[1750618392493,12.42263262,130.2,130.16,19.38964886]
[1750618392901,12.42263262,130.2,130.16,31.81228148]
[1750618393106,12.42263262,130.2,130.17,0.74]
[1750618393980,12.42263262,130.21,130.17,7.68219083]
[1750618394182,38.42263262,130.22,130.18,19.38964886]
[1750618394404,44.90204304,130.22,130.18,19.38964886]
[1750618395285,26.0,130.22,130.18,27.07096062]
[1750618395602,18.90204304,130.21,130.18,27.07096062]
[1750618397106,44.90204304,130.22,130.18,27.07096062]
[1750618398092,44.90204304,130.22,130.18,19.38964886]
[1750618398300,26.0,130.22,130.18,19.38964886]
[1750618398597,18.90204304,130.21,130.17,18.90204304]
[1750618398787,18.90204304,130.2,130.16,18.64964886]
[1750618399205,26.0,130.19,130.14,1.6043]
[1750618399410,18.90204304,130.17,130.14,1.6043]
[1750618399692,18.90204304,130.15,130.1,28.23866981]
[1750618400001,18.90204304,130.15,130.11,37.5516919]
[1750618400199,18.90204304,130.15,130.11,18.90204304]
[1750618400506,18.90204304,130.15,130.11,37.5516919]
[1750618401404,18.90204304,130.15,130.11,18.64964886]
[1750618401609,18.90204304,130.15,130.11,37.5516919]
[1750618401804,44.90204304,130.18,130.14,0.74]
[1750618401985,44.90204304,130.18,130.14,19.64204304]
[1750618403008,18.90204304,130.18,130.14,19.64204304]
[1750618403905,44.90204304,130.19,130.14,19.64204304]
[1750618404888,18.90204304,130.18,130.14,19.64204304]
[1750618405412,18.90204304,130.18,130.13,18.90204304]
[1750618406088,18.90204304,130.18,130.13,0.72]
[1750618406290,26.0,130.19,130.14,37.5516919]
[1750618406491,18.90204304,130.2,130.16,18.90204304]
[1750618406700,26.0,130.2,130.16,18.90204304]
[1750618407011,26.0,130.2,130.17,18.90204304]
[1750618407913,26.0,130.19,130.18,18.90204304]
[1750618408111,18.90204304,130.23,130.18,37.5516919]
[1750618408323,6.5448,130.24,130.18,37.5516919]
[1750618408324,18.90204304,130.24,130.2,18.90204304]
[1750618408496,26.0,130.21,130.19,18.90204304]
[1750618410410,1.5606,130.26,130.19,18.90204304]
[1750618410411,26.0,130.22,130.19,18.90204304]
[1750618411714,44.90204304,130.24,130.19,19.62204304]
[1750618412020,44.90204304,130.24,130.2,18.90204304]
[1750618413418,44.90204304,130.24,130.19,19.62204304]
[1750618414302,38.40122625,130.24,130.19,13.12122625]
[1750618415315,38.40122625,130.24,130.19,20.80217291]
[1750618415617,38.40122625,130.24,130.2,12.40122625]
[1750618416211,13.3337,130.28,130.22,12.40122625]
[1750618416212,6.3537,130.28,130.22,12.40122625]
[1750618416516,12.40122625,130.27,130.23,12.40122625]
[1750618416920,7.19641598,130.3,130.23,12.40122625]
[1750618417224,26.0,130.27,130.24,12.40122625]
[1750618417729,26.0,130.26,130.25,12.40122625]
[1750618417931,26.0,130.26,130.24,12.40122625]
[1750618418624,26.0,130.26,130.24,20.07932423]
[1750618419329,12.40122625,130.3,130.25,12.40122625]
[1750618419699,12.40122625,130.29,130.25,12.40122625]
[1750618420030,26.0,130.28,130.25,12.40122625]
[1750618421017,38.40122625,130.28,130.24,12.40122625]
[1750618421214,26.0,130.28,130.23,31.05087511]
[1750618421428,38.40122625,130.28,130.23,31.77087511]
[1750618423222,26.0,130.28,130.24,12.40122625]
[1750618423536,26.0,130.28,130.25,12.40122625]
[1750618424222,26.0,130.27,130.25,20.07853698]
[1750618424432,26.0,130.27,130.26,13.12122625]
[1750618425606,26.0,130.3,130.26,20.07809628]
[1750618425822,26.0,130.3,130.27,13.12122625]
[1750618426129,5.64570597,130.33,130.27,13.12122625]
[1750618426130,26.0,130.29,130.27,13.12122625]
[1750618426332,26.0,130.29,130.28,12.40122625]
[1750618426517,26.0,130.31,130.28,12.40122625]
[1750618426710,26.0,130.31,130.27,12.40122625]
[1750618426920,38.40122625,130.31,130.27,12.40122625]
[1750618427215,38.40122625,130.31,130.26,31.05087511]
[1750618427421,38.40122625,130.31,130.27,12.40122625]
[1750618428138,12.40122625,130.28,130.26,18.64964886]
[1750618428313,12.40122625,130.27,130.2,18.57572625]
[1750618428513,12.40122625,130.23,130.19,12.40122625]
[1750618428931,38.40122625,130.24,130.19,12.40122625]
[1750618430024,12.40122625,130.23,130.19,12.40122625]
[1750618430346,26.0,130.25,130.21,18.64964886]
[1750618430635,26.0,130.25,130.21,37.54770332]
[1750618431226,26.0,130.25,130.22,19.61805446]
[1750618431729,26.0,130.25,130.23,0.72]
[1750618431931,26.0,130.27,130.23,19.61805446]
[1750618432117,44.89805446,130.27,130.23,19.61805446]
[1750618433133,26.0,130.27,130.24,19.58805446]
[1750618434012,26.0,130.27,130.24,0.69]
[1750618437029,18.89805446,130.28,130.24,0.69]
[1750618437227,26.0,130.28,130.26,18.89805446]
[1750618437435,18.89805446,130.32,130.27,18.89805446]
[1750618437633,44.89805446,130.32,130.27,18.89805446]
[1750618437833,18.89805446,130.32,130.27,18.89805446]
[1750618438147,44.89805446,130.32,130.27,18.89805446]
[1750618438321,26.0,130.32,130.28,18.89805446]
[1750618438521,34.99345084,130.35,130.3,18.89805446]
[1750618438719,16.09539638,130.35,130.31,18.89805446]
[1750618439025,18.89805446,130.36,130.31,18.89805446]
[1750618439026,26.0,130.33,130.31,18.89805446]
[1750618439834,44.89805446,130.35,130.31,18.89805446]
[1750618440845,18.89805446,130.33,130.29,1.6319]
[1750618441060,18.89805446,130.32,130.29,1.6319]
[1750618441233,18.89805446,130.33,130.3,0.69]
[1750618441452,26.0,130.28,130.24,1.6319]
[1750618441757,44.89805446,130.25,130.2,1.6319]
[1750618442066,18.89805446,130.23,130.2,1.6319]
[1750618442221,18.89805446,130.23,130.18,40.39566202]
[1750618442222,18.89805446,130.22,130.18,13.8163]
[1750618442622,44.89805446,130.25,130.21,0.69]
[1750618442846,18.89805446,130.24,130.21,0.69]
[1750618444043,26.0,130.25,130.21,0.69]
[1750618444349,18.89805446,130.24,130.21,0.69]
[1750618445537,18.89805446,130.23,130.19,19.58805446]
[1750618446433,26.0,130.25,130.2,37.54770332]
[1750618446735,18.89805446,130.24,130.2,37.54770332]
[1750618447727,18.89805446,130.23,130.19,18.89805446]
[1750618448143,18.89805446,130.24,130.19,18.89805446]
[1750618448949,18.89805446,130.24,130.19,18.64964886]
[1750618449128,18.89805446,130.23,130.19,18.64964886]
[1750618450855,18.89805446,130.23,130.19,37.54770332]
[1750618451236,18.89805446,130.23,130.19,37.59770332]
[1750618451439,18.89805446,130.22,130.18,6.94]
[1750618451651,18.89805446,130.22,130.18,6.99]
[1750618451857,18.89805446,130.22,130.18,25.88805446]
[1750618452030,26.0,130.22,130.19,18.94805446]
[1750618452757,26.0,130.22,130.19,0.05]
[1750618455457,44.89805446,130.22,130.18,6.99]
[1750618455762,18.89805446,130.21,130.18,6.94]
[1750618457142,44.89805446,130.22,130.18,6.94]
[1750618457853,32.2853102,130.22,130.15,6.2193]
[1750618458065,18.89805446,130.18,130.14,19.58805446]
[1750618459072,44.89805446,130.19,130.14,27.27202733]
[1750618459264,26.0,130.19,130.16,0.69]
[1750618459466,44.89805446,130.19,130.16,0.69]
[1750618459663,44.89805446,130.19,130.14,38.23770332]
[1750618460358,18.89805446,130.18,130.14,38.23770332]
[1750618460561,26.0,130.19,130.13,27.43745446]
[1750618460767,18.89805446,130.17,130.13,27.43745446]
[1750618460973,44.89805446,130.16,130.13,6.94]
[1750618461278,18.89805446,130.14,130.1,20.49745446]
[1750618462082,26.0,130.16,130.1,20.49745446]
[1750618462083,44.89805446,130.15,130.1,20.49745446]
[1750618463250,26.0,130.15,130.12,18.89805446]
[1750618463864,44.89805446,130.15,130.11,37.54770332]
[1750618464261,26.0,130.15,130.11,37.54770332]
[1750618464662,26.0,130.15,130.12,18.89805446]
[1750618466154,26.0,130.15,130.12,18.94805446]
[1750618466562,26.0,130.15,130.11,37.54770332]
[1750618466762,44.89805446,130.15,130.11,37.54770332]
[1750618467080,18.89805446,130.14,130.1,20.54745446]
[1750618467299,18.89805446,130.12,130.08,25.88805446]
[1750618467588,26.0,130.12,130.08,25.88805446]
[1750618469763,18.89805446,130.12,130.08,6.94]
[1750618470776,18.89805446,130.11,130.08,6.94]
[1750618472674,18.89805446,130.1,130.08,6.94]
[1750618472972,18.89805446,130.1,130.06,37.59770332]
[1750618473886,44.89805446,130.11,130.06,37.59770332]
[1750618475079,44.89805446,130.11,130.07,0.7]
[1750618475380,44.89805446,130.11,130.07,19.59805446]
[1750618475971,18.89805446,130.09,130.04,16.03633031]
[1750618476169,18.89805446,130.07,130.03,18.64964886]
[1750618476371,18.89805446,130.04,130.01,108.02985031]
[1750618476571,44.89805446,130.02,129.96,25.95805446]
[1750618476781,18.89805446,130.0,129.96,25.95805446]
[1750618477189,18.89805446,130.0,129.95,20.40425446]
[1750618477496,18.89805446,130.0,129.95,28.09950894]
[1750618477688,18.89805446,130.0,129.96,18.64964886]
[1750618477989,18.89805446,129.99,129.95,20.40425446]
[1750618478298,18.89805446,129.99,129.92,18.89805446]
[1750618478299,18.89805446,129.97,129.92,18.89805446]
[1750618478587,18.89805446,129.97,129.93,18.64964886]
[1750618478972,18.89805446,129.97,129.93,18.89805446]
[1750618479285,18.89805446,129.97,129.93,26.59426288]
[1750618479789,18.89805446,129.97,129.93,18.89805446]
[1750618480182,18.89805446,129.94,129.89,72.88317055]
[1750618480366,18.89805446,129.92,129.89,80.58189004]
[1750618480781,18.89805446,129.93,129.89,80.58189004]
[1750618481178,26.0,129.94,129.89,80.58189004]
[1750618481392,18.89805446,129.93,129.89,81.28189004]
[1750618482104,18.89805446,129.93,129.9,0.7]
[1750618486797,18.89805446,129.93,129.89,80.58189004]
[1750618487004,18.89805446,129.91,129.89,65.82317055]
[1750618487174,44.89805446,129.91,129.87,20.31571746]
[1750618487509,18.89805446,129.89,129.87,1.6660686]
[1750618487675,18.89805446,129.88,129.87,1.6660686]
[1750618488007,18.89805446,129.89,129.87,1.6660686]
[1750618488197,18.89805446,129.92,129.87,1.6660686]
[1750618488508,18.89805446,129.91,129.87,20.56412306]
[1750618488716,18.89805446,129.88,129.87,1.6660686]
[1750618489408,18.89805446,129.89,129.87,1.6660686]
[1750618493399,26.0,129.88,129.87,1.6660686]
[1750618494489,13.1917,129.94,129.87,1.6660686]
[1750618494694,18.89805446,129.9,129.87,1.6660686]
[1750618496584,44.89805446,129.91,129.87,1.6660686]
[1750618497595,18.89805446,129.88,129.87,1.6660686]
[1750618497788,18.78805446,129.88,129.87,1.6660686]
[1750618497986,26.0,129.89,129.87,1.6660686]
[1750618498206,18.89805446,129.88,129.87,1.6660686]
[1750618498587,26.0,129.91,129.87,1.6660686]
[1750618498907,26.0,129.88,129.87,1.6660686]
[1750618499214,18.89805446,129.92,129.87,46.91377962]
[1750618499385,44.89805446,129.91,129.87,46.91377962]
[1750618499586,18.89805446,129.9,129.87,28.01572516]
[1750618500090,44.89805446,129.91,129.87,46.91377962]
[1750618500291,44.89805446,129.91,129.87,28.01572516]
[1750618500605,18.89805446,129.89,129.87,1.6660686]
[1750618501199,26.0,129.91,129.88,19.58805446]
[1750618501404,26.0,129.91,129.88,18.89805446]
[1750618501599,26.0,129.91,129.87,1.6660686]
[1750618501600,18.89805446,129.9,129.87,1.6660686]
[1750618501811,18.89805446,129.89,129.87,1.6660686]
[1750618502018,18.89805446,129.9,129.87,1.6660686]
[1750618502193,18.89805446,129.9,129.87,2.3560686]
[1750618503412,18.89805446,129.9,129.87,1.6660686]
[1750618504391,10.68429525,129.9,129.87,1.6660686]
[1750618506904,10.68429525,129.88,129.87,1.6660686]
[1750618507100,36.68429525,129.88,129.87,1.6660686]
[1750618508518,26.0,129.88,129.87,1.6660686]
[1750618509114,36.68429525,129.88,129.87,1.6660686]
[1750618509815,26.0,129.88,129.87,1.6660686]
[1750618510720,36.68429525,129.88,129.87,1.6660686]
[1750618514322,26.0,129.88,129.87,1.6660686]
[1750618515932,26.0,129.88,129.87,2.3560686]
[1750618517537,7.6201,129.97,129.88,20.27754886]
[1750618517708,10.68429525,129.94,129.9,10.68429525]
[1750618517899,26.0,129.93,129.9,10.68429525]
[1750618518308,10.68429525,129.94,129.9,10.68429525]
[1750618518512,10.68429525,129.95,129.91,10.68429525]
[1750618518808,36.68429525,129.95,129.91,10.68429525]
[1750618519409,26.0,129.95,129.91,10.68429525]
[1750618519636,26.0,129.95,129.92,10.68429525]
[1750618520332,26.0,129.95,129.91,45.32340985]
[1750618520533,44.97667676,129.95,129.91,45.32340985]
[1750618521028,44.97667676,129.92,129.88,1.6279]
[1750618521212,18.97667676,129.91,129.88,1.6279]
[1750618521415,18.97667676,129.91,129.88,9.32726814]
[1750618521618,18.97667676,129.91,129.88,2.3179]
[1750618522215,26.0,129.93,129.9,18.97667676]
[1750618522534,50.61546293,129.95,129.92,0.72]
[1750618522836,44.97667676,129.95,129.92,0.72]
[1750618525633,18.97667676,129.94,129.9,0.72]
[1750618525943,18.97667676,129.94,129.87,1.6660686]
[1750618525944,26.0,129.91,129.87,1.6660686]
[1750618526152,18.97667676,129.89,129.87,1.6660686]
[1750618526435,18.97667676,129.9,129.87,1.6660686]
[1750618526620,26.0,129.9,129.87,28.34273768]
[1750618526823,26.0,129.9,129.88,0.72]
[1750618527028,44.97667676,129.92,129.88,19.69667676]
[1750618527341,18.97667676,129.91,129.88,0.72]
[1750618527731,44.97667676,129.92,129.88,8.41936964]
[1750618528040,18.97667676,129.91,129.88,0.72]
[1750618529548,18.97667676,129.91,129.88,8.4193592]
[1750618529739,26.0,129.92,129.88,8.4193592]
[1750618530040,18.97667676,129.9,129.87,1.6660686]
[1750618531243,18.97667676,129.9,129.87,2.3360686]
[1750618532418,18.97667676,129.9,129.87,10.03602942]
[1750618532617,26.0,129.92,129.88,0.67]
[1750618532950,18.97667676,129.9,129.87,2.3360686]
[1750618533123,18.97667676,129.9,129.87,1.6660686]
[1750618537252,44.97667676,129.89,129.87,1.6660686]
[1750618537946,18.97667676,129.88,129.87,1.6660686]
[1750618538429,26.0,129.89,129.87,1.6660686]
[1750618538628,44.97667676,129.89,129.87,1.6660686]
[1750618542866,5.64003968,129.93,129.87,1.6660686]
[1750618543155,18.97667676,129.95,129.9,18.97667676]
[1750618543361,18.97667676,129.95,129.9,19.69667676]
[1750618543673,26.0,129.94,129.9,19.69667676]
[1750618544055,26.0,129.94,129.87,9.36595276]
[1750618544056,18.97667676,129.91,129.87,1.6660686]
[1750618544247,44.97667676,129.88,129.87,1.6660686]
[1750618544825,26.0,129.89,129.87,1.6660686]
[1750618546028,154.98302819,129.96,129.88,18.97667676]
[1750618546029,148.1,129.96,129.88,18.97667676]
[1750618546227,18.97667676,129.92,129.88,18.97667676]
[1750618546530,26.0,129.91,129.88,18.97667676]
[1750618546734,26.0,129.9,129.88,18.97667676]
[1750618547258,26.0,129.9,129.89,18.97667676]
[1750618547427,26.0,129.92,129.89,18.97667676]
[1750618547625,26.0,129.92,129.88,18.97667676]
[1750618549331,18.97667676,129.91,129.87,1.6660686]
[1750618549539,18.97667676,129.9,129.87,1.6660686]
[1750618549747,18.97667676,129.91,129.87,1.6660686]
[1750618550268,18.97667676,129.91,129.87,20.64274536]
[1750618550956,26.0,129.89,129.87,1.6660686]
[1750618551159,44.97667676,129.89,129.87,1.6660686]
[1750618551351,18.97667676,129.88,129.87,1.6660686]
[1750618551744,18.97667676,129.89,129.87,1.6660686]
[1750618551938,44.97667676,129.89,129.87,1.6660686]
[1750618552437,26.0,129.89,129.87,1.6660686]
[1750618554137,148.1,129.93,129.87,1.6660686]
[1750618554457,26.0,129.9,129.87,20.64274536]
[1750618554655,26.0,129.9,129.87,2.4060686]
[1750618555455,44.97667676,129.9,129.87,2.4060686]
[1750618555654,44.97667676,129.9,129.87,1.6660686]
[1750618556165,18.97667676,129.88,129.87,1.6660686]
[1750618556336,18.97667676,129.89,129.87,1.6660686]
[1750618557759,18.97667676,129.88,129.87,1.6660686]
[1750618558166,18.97667676,129.89,129.87,1.6660686]
[1750618558666,44.97667676,129.88,129.87,1.6660686]
[1750618558855,26.0,129.85,129.8,1.6034]
[1750618559163,18.97667676,129.83,129.8,1.6034]
[1750618559334,18.97667676,129.81,129.77,62.07069055]
[1750618559539,18.97667676,129.81,129.77,27.56007676]
[1750618559754,18.97667676,129.81,129.78,18.64964886]
[1750618560760,18.97667676,129.81,129.77,8.5834]
[1750618561066,18.97667676,129.8,129.77,6.98]
[1750618561569,18.97667676,129.8,129.77,7.72]
[1750618563237,44.97667676,129.79,129.75,0.74]
[1750618563441,26.0,129.79,129.74,1.6034]
[1750618563659,18.97667676,129.8,129.76,37.62632562]
[1750618563857,18.97667676,129.8,129.77,0.74]
[1750618564249,7.9343,129.85,129.79,37.62632562]
[1750618564448,18.97667676,129.84,129.8,18.97667676]
[1750618564650,18.97667676,129.84,129.8,0.74]
[1750618564848,18.97667676,129.84,129.8,19.71667676]
[1750618565250,18.97667676,129.84,129.8,28.30566997]
[1750618565453,18.97667676,129.84,129.81,0.74]
[1750618565958,18.97667676,129.86,129.82,0.74]
[1750618566274,18.97667676,129.88,129.8,1.6249]
[1750618566443,18.97667676,129.84,129.81,0.67]
[1750618566844,18.97667676,129.85,129.81,0.67]
[1750618567068,26.0,129.86,129.81,0.67]
[1750618567266,18.97667676,129.85,129.81,0.67]
[1750618567449,18.97667676,129.84,129.81,0.67]
[1750618567643,18.97667676,129.84,129.8,2.2949]
[1750618569155,18.97667676,129.83,129.8,2.2949]
[1750618569352,18.97667676,129.83,129.8,1.6249]
[1750618569669,18.97667676,129.84,129.8,1.6249]
[1750618570073,18.97667676,129.83,129.8,1.6249]
[1750618570571,18.97667676,129.83,129.78,37.62632562]
[1750618570776,18.97667676,129.83,129.79,19.64667676]
[1750618571875,18.97667676,129.82,129.79,0.67]
[1750618572053,26.0,129.8,129.77,1.962]
[1750618572258,44.97667676,129.8,129.77,1.962]
[1750618572460,26.0,129.8,129.77,1.962]
[1750618573279,44.97667676,129.8,129.77,1.962]
[1750618573863,18.97667676,129.79,129.75,45.03632562]
[1750618574372,18.97667676,129.79,129.75,44.60632562]
[1750618574568,18.97667676,129.79,129.76,0.43]
[1750618574744,26.0,129.8,129.75,6.98]
[1750618574745,18.97667676,129.78,129.75,6.98]
[1750618574950,18.97667676,129.77,129.74,2.0099]
[1750618578670,18.97667676,129.77,129.74,1.5799]
[1750618579072,18.97667676,129.76,129.74,1.5799]
[1750618579275,18.97667676,129.77,129.74,1.5799]
[1750618579667,6.6009,129.81,129.75,18.64964886]
[1750618579879,18.97667676,129.79,129.75,18.64964886]
[1750618580061,18.97667676,129.78,129.74,2.3199]
[1750618580483,18.97667676,129.78,129.74,21.29657676]
[1750618580981,26.0,129.8,129.76,18.97667676]
[1750618581153,18.97667676,129.8,129.76,18.97667676]
[1750618581349,148.1,129.83,129.76,37.62632562]
[1750618581608,18.97667676,129.81,129.77,18.97667676]
[1750618581771,26.0,129.8,129.77,18.97667676]
[1750618582353,26.0,129.8,129.77,10.69843809]
[1750618583860,26.0,129.8,129.76,29.34808695]
[1750618584062,36.69843809,129.8,129.76,29.34808695]
[1750618584274,45.02321891,129.8,129.76,18.64964886]
[1750618584472,26.0,129.8,129.76,37.67286777]
[1750618585477,19.02321891,129.79,129.75,18.64964886]
[1750618585789,45.02321891,129.8,129.75,37.67286777]
[1750618586103,45.02321891,129.8,129.76,19.02321891]
[1750618586464,19.02321891,129.79,129.75,19.37964886]
[1750618586664,45.02321891,129.8,129.76,19.02321891]
[1750618586863,45.02321891,129.8,129.75,19.37964886]
[1750618586864,45.02321891,129.8,129.75,38.40286777]
[1750618587371,19.02321891,129.79,129.75,18.64964886]
[1750618587569,26.0,129.8,129.75,18.64964886]
[1750618587769,19.02321891,129.79,129.75,18.64964886]
[1750618588457,19.02321891,129.78,129.75,18.64964886]
[1750618590072,19.02321891,129.79,129.75,18.64964886]
[1750618590684,19.02321891,129.78,129.75,18.64964886]
[1750618590981,19.02321891,129.78,129.74,1.5799]
[1750618591162,19.02321891,129.78,129.74,20.60311891]
[1750618591585,19.02321891,129.75,129.72,18.64964886]
[1750618591966,45.02321891,129.73,129.7,18.64964886]
[1750618592169,45.02321891,129.73,129.69,7.0]
[1750618592374,19.02321891,129.72,129.69,7.0]
[1750618592589,26.0,129.73,129.67,1.5272]
[1750618592590,26.0,129.73,129.68,37.67286777]
[1750618592775,45.02321891,129.73,129.68,37.67286777]
[1750618593087,148.1,129.76,129.7,37.67286777]
[1750618593285,174.1,129.76,129.7,19.02321891]
[1750618593487,19.02321891,129.75,129.7,19.02321891]
[1750618593664,19.02321891,129.74,129.7,19.02321891]
[1750618593859,19.02321891,129.74,129.69,18.64964886]
[1750618593860,26.0,129.73,129.67,1.5272]
[1750618594082,45.02321891,129.73,129.68,37.67286777]
[1750618594874,45.02321891,129.73,129.69,19.02321891]
[1750618595075,45.02321891,129.73,129.68,37.67286777]
[1750618595485,45.02321891,129.73,129.68,19.02321891]
[1750618595787,19.02321891,129.72,129.67,20.55041891]
[1750618596289,19.02321891,129.72,129.68,0.73]
[1750618598362,19.02321891,129.72,129.67,21.28041891]
[1750618599173,26.0,129.73,129.68,19.02321891]
[1750618599491,26.0,129.73,129.69,19.75321891]
[1750618599674,19.02321891,129.72,129.68,19.75321891]
[1750618602088,19.02321891,129.72,129.66,7.7124091]
[1750618602288,19.02321891,129.71,129.67,19.02321891]
[1750618602785,19.02321891,129.72,129.67,19.02321891]
[1750618603089,148.1,129.74,129.71,19.02321891]
[1750618603673,167.12321891,129.74,129.69,37.67286777]
[1750618603874,19.02321891,129.73,129.68,20.54831891]
[1750618604079,19.02321891,129.73,129.69,19.02321891]
[1750618604281,10.71253631,129.73,129.68,19.94864063]
[1750618604479,10.71253631,129.73,129.69,10.71253631]
[1750618604683,10.71253631,129.72,129.68,12.23763631]
[1750618605473,10.71253631,129.72,129.68,1.5251]
[1750618605677,10.71253631,129.71,129.67,10.71253631]
[1750618605892,10.71253631,129.72,129.67,10.71253631]
[1750618606396,10.71253631,129.72,129.68,0.73]
[1750618606598,10.71253631,129.72,129.68,11.44253631]
[1750618607099,10.71253631,129.72,129.68,0.73]
[1750618608371,10.71253631,129.71,129.68,0.73]
[1750618609500,10.71253631,129.72,129.68,0.73]
[1750618611293,10.71253631,129.72,129.68,11.44253631]
[1750618612187,10.71253631,129.72,129.68,0.73]
[1750618612373,10.71253631,129.69,129.64,86.27786843]
[1750618612577,10.71253631,129.68,129.64,75.56533212]
[1750618612797,10.71253631,129.68,129.63,17.71253631]
[1750618613006,10.71253631,129.67,129.63,7.0]
[1750618613301,10.71253631,129.67,129.63,17.71253631]
[1750618613503,36.71253631,129.68,129.63,17.71253631]
[1750618614003,36.71253631,129.68,129.63,16.71253631]
[1750618614519,148.1,129.75,129.68,18.64964886]
[1750618614720,17.00183631,129.76,129.72,10.71253631]
[1750618614879,49.06192646,129.76,129.72,10.71253631]
[1750618615078,43.00183631,129.76,129.72,10.71253631]
[1750618617108,32.2893,129.76,129.7,11.42253631]
[1750618617290,10.71253631,129.74,129.7,11.42253631]
[1750618617604,10.71253631,129.72,129.68,11.42253631]
[1750618617786,10.71253631,129.72,129.68,10.71253631]
[1750618617982,36.71253631,129.73,129.69,10.71253631]
[1750618618703,10.71253631,129.72,129.68,11.42253631]
[1750618618911,10.71253631,129.71,129.67,12.31703631]
[1750618619205,10.71253631,129.71,129.67,10.71253631]
[1750618620008,10.71253631,129.71,129.67,11.42253631]
[1750618620505,10.71253631,129.71,129.67,19.76022819]
[1750618620506,19.05022819,129.71,129.67,19.76022819]
[1750618621805,19.05022819,129.71,129.67,0.71]
[1750618622503,19.05022819,129.7,129.67,0.71]
[1750618622816,19.05022819,129.7,129.66,19.05022819]
[1750618623912,167.15022819,129.72,129.68,19.05022819]
[1750618624693,167.15022819,129.72,129.67,19.05022819]
[1750618626305,19.05022819,129.71,129.67,19.76022819]
[1750618627099,148.1,129.72,129.68,0.71]
[1750618627298,167.15022819,129.72,129.68,0.71]
[1750618628293,19.05022819,129.71,129.68,0.71]
[1750618628611,19.05022819,129.71,129.67,19.76022819]
[1750618629017,19.05022819,129.7,129.66,19.05022819]
[1750618629195,19.05022819,129.68,129.65,0.71]
[1750618629404,19.05022819,129.68,129.64,2.2569]
[1750618629913,19.05022819,129.67,129.64,2.2569]
[1750618630488,19.05022819,129.67,129.63,25.05022819]
[1750618630688,19.05022819,129.67,129.63,6.0]
[1750618632114,19.05022819,129.66,129.63,6.0]
[1750618632306,19.05022819,129.64,129.61,2.3760686]
[1750618632502,26.0,129.65,129.61,28.43174466]
[1750618632698,19.05022819,129.68,129.63,19.05022819]
[1750618632914,45.05022819,129.68,129.64,19.05022819]
[1750618633120,45.05022819,129.68,129.63,19.05022819]
[1750618633796,19.05022819,129.67,129.63,19.05022819]
[1750618634921,19.05022819,129.67,129.63,26.76440288]
[1750618636105,19.05022819,129.67,129.63,27.47440288]
[1750618637113,19.05022819,129.67,129.63,26.76440288]
[1750618637317,19.05022819,129.7,129.66,19.05022819]
[1750618637616,45.05022819,129.7,129.66,19.05022819]
[1750618637816,19.05022819,129.69,129.65,19.76022819]
[1750618638321,26.0,129.7,129.61,2.3760686]
[1750618638522,19.05022819,129.63,129.61,1.6660686]
[1750618639022,19.05022819,129.62,129.61,1.6660686]